bitfinex/quotes_SOLUSD_20240718
["timestamp","ask_amount","ask_price","bid_price","bid_amount"]
[1721285484208,1.56429796,159.85,159.8,12.04]
[1721285484578,13.60429796,159.85,159.8,12.04]
[1721285487592,12.04,159.84,159.79,12.04]
[1721285487805,13.60429796,159.85,159.8,12.04]
[1721285488478,1.5640643,159.85,159.8,1.251439]
[1721285488674,1.5640643,159.85,159.82,12.04]
[1721285489702,18.1137,159.87,159.82,12.04]
[1721285489913,18.1137,159.87,159.8,1.25129534]
[1721285489914,6.0737,159.87,159.83,12.04]
[1721285490076,6.0737,159.87,159.84,12.04]
[1721285490495,19.67761276,159.87,159.81,9.28389521]
[1721285490704,19.67761276,159.87,159.82,12.04]
[1721285492577,19.67761276,159.87,159.79,6.53910602]
[1721285492578,7.63761276,159.87,159.83,12.04]
[1721285493401,1.56389452,159.89,159.85,12.04]
[1721285493608,1.56389452,159.89,159.86,12.04]
[1721285494487,1.56381153,159.9,159.87,12.04]
[1721285494804,6.545,159.91,159.88,12.04]
[1721285497085,1.56353076,159.93,159.86,1.25082751]
[1721285497416,1.56336669,159.92,159.89,12.04]
[1721285497723,12.04,159.91,159.85,12.04]
[1721285497924,1.56375872,159.9,159.85,12.04]
[1721285498087,1.5637909,159.89,159.85,12.04]
[1721285498409,20.0559909,159.89,159.83,21.31568954]
[1721285498613,1.56393107,159.88,159.83,12.04]
[1721285498906,12.04,159.87,159.82,21.31568954]
[1721285499107,6.4522,159.89,159.81,21.31568954]
[1721285499108,13.60407664,159.86,159.81,21.31568954]
[1721285499315,1.56407289,159.85,159.81,12.04]
[1721285503894,13.60414972,159.86,159.81,13.29131977]
[1721285504096,13.60403626,159.87,159.82,12.04]
[1721285504313,13.60403626,159.87,159.81,13.29131977]
[1721285504521,13.60403626,159.87,159.81,12.04]
[1721285504819,13.60403626,159.87,159.82,12.04]
[1721285505115,12.04,159.86,159.81,12.04]
[1721285505422,13.60411018,159.86,159.81,13.29128814]
[1721285505590,12.04,159.86,159.81,12.04]
[1721285505912,13.60407336,159.87,159.82,12.04]
[1721285507092,1.56407336,159.87,159.82,12.04]
[1721285507591,1.56407336,159.87,159.83,12.04]
[1721285508293,27.674,159.88,159.83,12.04]
[1721285508495,29.23796147,159.88,159.82,12.04]
[1721285508722,12.04,159.87,159.82,12.04]
[1721285509010,1.56403515,159.86,159.82,12.04]
[1721285510431,1.5639878,159.87,159.82,12.04]
[1721285511223,12.04,159.86,159.81,21.32440567]
[1721285511529,1.5641141,159.85,159.81,21.32440567]
[1721285512332,1.5641141,159.85,159.81,22.57568892]
[1721285512637,13.60408651,159.86,159.81,21.32440567]
[1721285513305,12.04,159.84,159.81,9.28446833]
[1721285513513,1.56427956,159.83,159.8,9.28446833]
[1721285513716,7.83477956,159.83,159.8,9.28628638]
[1721285514014,19.87477956,159.83,159.79,15.82281094]
[1721285514217,18.3105,159.83,159.79,15.82281094]
[1721285514403,6.2705,159.83,159.8,9.28628638]
[1721285514605,7.83480063,159.83,159.8,9.28628638]
[1721285514900,7.83480063,159.83,159.79,15.82281094]
[1721285515100,6.2705,159.83,159.8,12.04]
[1721285515303,6.2705,159.83,159.8,21.32628638]
[1721285515743,6.2705,159.83,159.8,22.57772392]
[1721285516228,1.56420116,159.85,159.8,21.32628638]
[1721285516420,13.6040926,159.86,159.81,12.04]
[1721285516603,1.56409561,159.85,159.81,13.29127649]
[1721285516811,1.56409561,159.85,159.81,22.57756287]
[1721285517232,1.56409561,159.85,159.81,13.29127649]
[1721285517428,1.56409561,159.85,159.81,12.04]
[1721285517723,13.60414021,159.86,159.81,12.04]
[1721285517923,1.56414513,159.85,159.81,12.04]
[1721285518117,13.60414513,159.85,159.8,21.32628638]
[1721285519028,12.04,159.85,159.8,21.32628638]
[1721285519615,12.04,159.85,159.8,21.32956867]
[1721285520229,13.60414534,159.86,159.81,21.32956867]
[1721285520419,1.56414084,159.85,159.81,21.32956867]
[1721285520915,1.56414084,159.85,159.8,9.28956867]
[1721285521108,13.60414084,159.85,159.8,9.28956867]
[1721285521310,1.56414367,159.84,159.8,9.28956867]
[1721285522014,1.56414367,159.84,159.8,9.28991292]
[1721285522325,13.60414367,159.84,159.8,9.28991292]
[1721285522631,1.56430227,159.83,159.8,9.2914361]
[1721285523213,1.56430227,159.83,159.79,15.82796066]
[1721285523415,1.56430227,159.83,159.79,27.86796066]
[1721285523615,1.5643021,159.86,159.79,15.82796066]
[1721285523819,1.5643021,159.86,159.81,21.3314361]
[1721285523820,1.56415049,159.85,159.81,21.3314361]
[1721285524741,6.005,159.87,159.84,12.04]
[1721285525253,6.6359,159.95,159.84,25.6728]
[1721285525415,6.6359,159.95,159.87,10.0]
[1721285525735,8.19911345,159.95,159.91,12.04]
[1721285526105,6.6359,159.95,159.91,12.04]
[1721285526307,20.23901733,159.95,159.9,12.04]
[1721285526553,12.04,159.93,159.87,9.29286363]
[1721285526841,13.60336511,159.94,159.89,12.04]
[1721285527216,13.60336511,159.94,159.9,1.25066464]
[1721285527412,13.60336511,159.94,159.89,12.04]
[1721285527612,1.56336511,159.94,159.87,9.29286363]
[1721285527818,13.60336511,159.94,159.89,12.04]
[1721285528118,12.04,159.92,159.86,9.28640625]
[1721285528315,1.56346386,159.91,159.87,12.04]
[1721285528518,1.56344254,159.94,159.88,12.04]
[1721285528739,12.04,159.91,159.85,9.28640625]
[1721285529041,12.04,159.91,159.86,12.04]
[1721285530238,12.04,159.92,159.87,12.04]
[1721285530537,1.56352904,159.94,159.87,12.04]
[1721285530736,13.60352904,159.94,159.89,12.04]
[1721285532133,1.56352904,159.94,159.9,12.04]
[1721285532441,18.6759,159.95,159.91,12.04]
[1721285532442,8.19919754,159.95,159.91,12.04]
[1721285535229,1.56307194,159.97,159.93,12.04]
[1721285535532,13.60303168,159.98,159.93,12.04]
[1721285536538,12.04,159.98,159.93,12.04]
[1721285537346,12.04,159.98,159.94,1.25033202]
[1721285537849,12.04,159.98,159.89,10.0]
[1721285538145,12.04,159.96,159.9,12.04]
[1721285538318,12.04,159.96,159.91,12.04]
[1721285538518,1.56306247,159.95,159.91,12.04]
[1721285539144,1.56307933,159.99,159.92,13.29042529]
[1721285539347,6.4334,160.0,159.93,13.29035413]
[1721285539348,13.60294267,159.98,159.93,13.29035413]
[1721285540048,1.56291613,159.99,159.93,1.25035413]
[1721285540216,1.56291613,159.99,159.95,12.04]
[1721285542629,1.56282279,159.98,159.95,12.04]
[1721285543024,1.56282279,159.98,159.93,1.25035413]
[1721285543025,1.56282279,159.98,159.93,12.04]
[1721285543228,13.60282279,159.98,159.93,12.04]
[1721285543628,12.04,159.98,159.93,12.04]
[1721285543928,12.04,159.96,159.91,12.04]
[1721285544135,1.56313411,159.95,159.91,12.04]
[1721285545753,1.56313411,159.95,159.9,12.04]
[1721285545754,13.60313411,159.95,159.9,12.04]
[1721285546045,13.60317325,159.94,159.89,12.04]
[1721285546221,6.5506,159.92,159.88,12.04]
[1721285546421,6.5506,159.92,159.86,6.5135201]
[1721285546422,1.56352624,159.91,159.87,12.04]
[1721285546671,13.60352624,159.91,159.86,18.5535201]
[1721285548161,20.15419984,159.92,159.87,13.29087987]
[1721285548367,8.11419984,159.92,159.88,12.04]
[1721285548566,6.5506,159.92,159.88,12.04]
[1721285548749,6.5506,159.92,159.87,10.0]
[1721285549070,8.11389883,159.92,159.89,12.04]
[1721285549373,8.11389883,159.92,159.88,12.04]
[1721285549867,15.6131,159.93,159.89,1.25068129]
[1721285550069,15.6131,159.93,159.9,1.25063502]
[1721285550569,1.56323,159.95,159.88,1.250584]
[1721285551267,6.1516,159.96,159.88,55.0]
[1721285551565,7.71475886,159.96,159.88,55.0]
[1721285551769,1.56303526,159.95,159.89,1.25042821]
[1721285551971,7.71475315,159.96,159.9,1.25052251]
[1721285552143,1.56315315,159.95,159.88,55.0]
[1721285553370,1.56315315,159.95,159.89,1.25051621]
[1721285553679,1.56315315,159.95,159.86,16.5135201]
[1721285553967,1.56315315,159.95,159.87,1.25067327]
[1721285554438,1.56315315,159.95,159.86,6.5135201]
[1721285554641,0.17,159.94,159.86,6.5135201]
[1721285554856,1.73352614,159.94,159.86,6.5135201]
[1721285555067,1.56352614,159.94,159.87,1.2508138]
[1721285555453,1.56352614,159.94,159.84,25.49752294]
[1721285555869,1.56344238,159.95,159.86,6.49824841]
[1721285556068,1.73352982,159.94,159.86,6.49824841]
[1721285557268,6.1516,159.96,159.87,1.25080781]
[1721285557441,1.56337996,159.95,159.86,16.49824841]
[1721285557867,1.56337996,159.95,159.87,46.25059342]
[1721285558058,1.56337996,159.95,159.88,10.0]
[1721285558247,1.56337996,159.95,159.89,1.25057005]
[1721285558450,1.56337996,159.95,159.9,1.25057005]
[1721285559575,1.56313387,159.95,159.9,1.25057005]
[1721285560864,1.56313387,159.95,159.86,6.49824841]
[1721285561080,1.56313387,159.95,159.86,16.49824841]
[1721285561250,1.56313387,159.95,159.88,10.0]
[1721285561585,1.56313387,159.95,159.89,1.25053229]
[1721285561865,1.56313387,159.95,159.9,1.25054764]
[1721285562073,1.56313387,159.95,159.87,45.0]
[1721285562583,1.56313387,159.95,159.88,1.25057252]
[1721285563359,1.56313387,159.95,159.86,16.49824841]
[1721285563572,1.56313387,159.95,159.86,6.49824841]
[1721285567258,1.56313387,159.95,159.86,15.79318493]
[1721285567550,0.17,159.94,159.86,15.79318493]
[1721285567861,1.56361802,159.93,159.86,6.49824841]
[1721285568078,22.9985,159.91,159.86,6.49824841]
[1721285568249,1.56362788,159.9,159.86,6.49824841]
[1721285568580,1.56376503,159.89,159.81,31.59000151]
[1721285568750,1.56376503,159.89,159.84,15.80215898]
[1721285568955,1.56375202,159.9,159.85,1.25100161]
[1721285570072,1.56375202,159.9,159.86,1.25097954]
[1721285570257,1.56375202,159.9,159.86,13.28097954]
[1721285570463,1.56375202,159.9,159.86,12.03]
[1721285571852,22.9985,159.91,159.87,12.03]
[1721285571853,24.56212507,159.91,159.87,12.03]
[1721285572169,24.56212507,159.91,159.88,12.03]
[1721285572759,22.9985,159.91,159.88,12.03]
[1721285573463,22.9985,159.91,159.89,12.03]
[1721285574762,22.9985,159.91,159.87,10.55445748]
[1721285574983,22.9985,159.91,159.88,12.03]
[1721285576063,22.9985,159.91,159.87,12.03]
[1721285576990,1.56351939,159.9,159.87,12.03]
[1721285577280,1.56351939,159.9,159.86,12.03]
[1721285577483,1.56351939,159.9,159.87,12.03]
[1721285578668,1.56358774,159.89,159.84,6.49767033]
[1721285578972,12.03,159.88,159.84,9.30465074]
[1721285579159,1.56387447,159.87,159.84,9.30465074]
[1721285579480,1.56387447,159.87,159.83,12.03]
[1721285580069,1.56387447,159.87,159.82,9.30465074]
[1721285580270,18.4879,159.86,159.81,34.03978318]
[1721285580472,6.4579,159.86,159.82,21.33465074]
[1721285580691,8.02193815,159.86,159.82,21.33465074]
[1721285580889,8.02193815,159.86,159.82,21.33820746]
[1721285581059,6.4579,159.86,159.83,13.28123091]
[1721285581267,6.4579,159.86,159.84,12.03]
[1721285582180,1.56390989,159.88,159.84,12.03]
[1721285582383,1.56389661,159.89,159.83,1.25112872]
[1721285582562,1.56389661,159.89,159.83,10.55933618]
[1721285582773,6.1577,159.9,159.84,10.0]
[1721285583091,6.1577,159.9,159.85,9.30820746]
[1721285583461,6.1577,159.9,159.86,11.25077037]
[1721285583785,20.35346296,159.97,159.86,11.25077037]
[1721285583786,6.3554,159.94,159.86,20.55316611]
[1721285583986,7.9187395,159.94,159.87,9.30239574]
[1721285584163,6.3554,159.94,159.88,65.55290405]
[1721285584364,6.3554,159.94,159.88,71.7572763]
[1721285584791,6.3554,159.94,159.89,1.25053517]
[1721285585090,6.3554,159.94,159.88,70.50676799]
[1721285586062,6.3554,159.94,159.89,1.25052775]
[1721285586262,6.3554,159.94,159.9,1.25051032]
[1721285586489,6.3554,159.94,159.88,70.50676799]
[1721285586682,6.3554,159.94,159.88,61.20437225]
[1721285586868,6.3554,159.94,159.88,70.50205299]
[1721285587063,6.3554,159.94,159.89,1.25051812]
[1721285587282,6.3554,159.94,159.9,1.25051824]
[1721285587486,7.91854906,159.94,159.88,70.50205299]
[1721285587908,7.91854906,159.94,159.88,70.50232753]
[1721285588263,7.91854906,159.94,159.88,15.50232753]
[1721285588664,7.91854906,159.94,159.89,1.25064411]
[1721285588971,6.3554,159.94,159.9,1.25063301]
[1721285590410,7.91856296,159.94,159.89,9.29795528]
[1721285590880,6.3554,159.94,159.89,9.29795528]
[1721285591073,7.9185733,159.94,159.9,1.25053864]
[1721285591373,7.9185733,159.94,159.89,9.29795528]
[1721285592586,7.9185733,159.94,159.88,9.29795528]
[1721285592808,7.9185733,159.94,159.89,1.2506703]
[1721285593178,7.9185733,159.94,159.88,9.29795528]
[1721285593179,7.9185733,159.94,159.88,9.29859591]
[1721285593380,7.9185733,159.94,159.89,1.25067095]
[1721285593774,7.9185733,159.94,159.88,9.29860321]
[1721285594177,7.9185733,159.94,159.87,9.29860321]
[1721285594383,7.9185733,159.94,159.88,1.25078414]
[1721285594683,7.9185733,159.94,159.88,10.54938735]
[1721285595101,7.9185733,159.94,159.88,9.29860321]
[1721285595302,7.9185733,159.94,159.89,9.29860321]
[1721285596187,7.9185733,159.94,159.86,10.0]
[1721285596374,7.9185733,159.94,159.88,9.30010395]
[1721285596777,7.9185733,159.94,159.88,9.30090236]
[1721285597512,7.9185733,159.94,159.87,9.30090236]
[1721285598282,7.9185733,159.94,159.88,10.55157094]
[1721285598895,7.9185733,159.94,159.88,9.30090236]
[1721285599491,7.9185733,159.94,159.88,9.29620766]
[1721285600095,7.9185733,159.94,159.89,9.29620766]
[1721285601114,7.9185733,159.94,159.87,9.29620766]
[1721285601279,7.9185733,159.94,159.86,9.29620766]
[1721285601481,0.17,159.93,159.86,9.29620766]
[1721285602281,15.6131,159.92,159.86,9.29620766]
[1721285602485,6.6111,159.9,159.84,6.49226449]
[1721285602712,1.56376612,159.89,159.85,1.25101289]
[1721285603007,1.56376612,159.89,159.85,10.5538439]
[1721285603412,1.56376612,159.89,159.85,9.30283101]
[1721285604511,1.56376612,159.89,159.85,10.55389877]
[1721285605001,1.56376612,159.89,159.85,9.30283101]
[1721285605515,6.6111,159.9,159.86,1.25093741]
[1721285605710,6.6111,159.9,159.86,10.55307314]
[1721285605930,6.6111,159.9,159.86,9.30213573]
[1721285606224,15.6131,159.92,159.86,9.30170163]
[1721285606520,15.6131,159.92,159.87,10.55244961]
[1721285606811,15.6131,159.92,159.88,9.30170163]
[1721285607020,1.56348575,159.91,159.87,9.30170163]
[1721285607521,17.1766942,159.92,159.87,9.30170163]
[1721285608210,17.1766942,159.92,159.85,10.55257699]
[1721285609288,17.1766942,159.92,159.86,1.25096054]
[1721285609498,17.1766942,159.92,159.85,9.30170163]
[1721285610013,17.1766942,159.92,159.86,1.25095138]
[1721285610430,17.1766942,159.92,159.86,10.55265301]
[1721285610812,1.56356772,159.91,159.86,10.55265301]
[1721285611222,15.6131,159.92,159.86,19.30170163]
[1721285611524,1.56331642,159.91,159.86,9.30170163]
[1721285611815,17.17668653,159.92,159.86,9.30170163]
[1721285612022,17.17668653,159.92,159.86,9.30550609]
[1721285615219,17.17668653,159.92,159.86,9.31004528]
[1721285615700,17.17668653,159.92,159.86,9.30988071]
[1721285616200,12.03,159.9,159.85,21.33988071]
[1721285616398,1.56380354,159.89,159.85,21.33988071]
[1721285618529,1.56380354,159.89,159.85,21.3405764]
[1721285618707,1.56379332,159.9,159.86,9.3105764]
[1721285618904,1.56379341,159.89,159.86,9.3105764]
[1721285619099,1.56371413,159.9,159.86,12.03]
[1721285619299,18.1099,159.91,159.86,21.3405764]
[1721285619300,1.56364629,159.89,159.86,21.3405764]
[1721285619611,13.59364629,159.89,159.85,9.3105764]
[1721285619936,15.2839,159.88,159.85,9.3105764]
[1721285620112,12.03,159.86,159.82,9.3105764]
[1721285620302,1.56422859,159.85,159.82,9.3105764]
[1721285620504,13.59422859,159.85,159.82,9.3105764]
[1721285620936,12.03,159.84,159.81,9.3105764]
[1721285621105,1.56430823,159.83,159.8,9.3105764]
[1721285621306,1.56430823,159.83,159.79,12.03]
[1721285621525,1.56430823,159.83,159.8,9.32178107]
[1721285621716,12.03,159.85,159.8,21.35178107]
[1721285621920,1.56430223,159.84,159.8,21.35178107]
[1721285622122,1.56430223,159.84,159.81,12.03]
[1721285622327,1.56430223,159.84,159.8,9.32178107]
[1721285622825,1.56430375,159.86,159.79,9.32178107]
[1721285623028,1.56430406,159.85,159.79,9.32178107]
[1721285623214,1.56430406,159.85,159.8,9.32178107]
[1721285624113,1.56430151,159.86,159.81,1.25144121]
[1721285624312,1.5641624,159.85,159.81,10.57322228]
[1721285624612,1.5641624,159.85,159.81,9.32101606]
[1721285624831,1.5641624,159.85,159.81,9.32104862]
[1721285625029,1.56412893,159.86,159.79,11.25133484]
[1721285625227,6.4143,159.87,159.82,9.32083158]
[1721285625453,6.4143,159.87,159.83,1.2511111]
[1721285625733,6.4143,159.87,159.83,1.25111087]
[1721285625940,6.4143,159.87,159.82,9.32083158]
[1721285626111,6.4143,159.87,159.84,9.32083158]
[1721285626307,1.56388859,159.91,159.85,10.57192409]
[1721285626512,1.56356436,159.93,159.86,10.57168307]
[1721285626733,1.56360783,159.92,159.86,1.25085149]
[1721285627126,1.56360783,159.92,159.85,9.32083158]
[1721285627509,1.56360783,159.92,159.84,9.32083158]
[1721285627835,1.56354415,159.91,159.85,10.56594615]
[1721285628039,1.56359447,159.93,159.86,1.25087558]
[1721285628343,1.56359615,159.92,159.85,9.31511083]
[1721285628524,1.56359615,159.92,159.84,9.31511083]
[1721285630718,0.17,159.91,159.84,9.31511083]
[1721285630922,1.73384275,159.91,159.84,9.31683013]
[1721285631134,1.56384275,159.91,159.84,9.31683013]
[1721285631916,1.56376455,159.92,159.84,9.31683013]
[1721285632117,63.96,159.93,159.84,9.31683013]
[1721285632318,1.73376414,159.92,159.85,1.25101131]
[1721285632524,1.73376414,159.92,159.86,1.25095512]
[1721285633215,1.56376414,159.92,159.86,1.25095512]
[1721285633636,1.56376414,159.92,159.85,1.25088789]
[1721285633944,1.56376414,159.92,159.86,1.25088529]
[1721285634639,1.56376414,159.92,159.84,9.31554474]
[1721285636124,1.56376414,159.92,159.85,1.25088507]
[1721285636823,1.56376414,159.92,159.84,9.31554474]
[1721285637446,1.56376414,159.92,159.84,9.31332097]
[1721285638042,1.56376414,159.92,159.85,9.31332097]
[1721285638231,22.3107,159.94,159.86,1.25088159]
[1721285638543,1.73358033,159.93,159.86,1.25088159]
[1721285638718,1.56358289,159.92,159.86,1.25088159]
[1721285638920,1.56358289,159.92,159.85,10.56418677]
[1721285639231,1.56358289,159.92,159.86,1.25086814]
[1721285639622,1.56358289,159.92,159.85,9.31332097]
[1721285640218,1.56358289,159.92,159.86,1.25088752]
[1721285640625,22.3107,159.94,159.86,1.25088752]
[1721285640826,1.56357862,159.93,159.86,1.25088752]
[1721285641017,1.56357858,159.92,159.86,1.25088752]
[1721285641237,1.56357858,159.92,159.85,9.31326645]
[1721285641434,1.56358102,159.93,159.87,9.31326645]
[1721285641636,1.56358102,159.93,159.88,10.5639652]
[1721285642341,22.3107,159.94,159.88,10.5639652]
[1721285642541,22.3107,159.94,159.88,1.25069875]
[1721285643746,1.56330683,159.93,159.87,9.30891542]
[1721285644335,13.59330683,159.93,159.88,12.03]
[1721285644539,34.3407,159.94,159.89,13.28064994]
[1721285644747,22.3107,159.94,159.9,1.25056852]
[1721285645050,22.3107,159.94,159.9,13.28056852]
[1721285645349,6.0226,159.94,159.92,12.03]
[1721285645726,6.0226,159.94,159.93,13.28041191]
[1721285645926,6.0226,159.94,159.93,12.03]
[1721285647429,6.0226,159.94,159.9,10.0]
[1721285647740,6.0226,159.94,159.91,12.03]
[1721285647944,6.0226,159.94,159.91,13.28050471]
[1721285648327,6.0226,159.94,159.91,12.03]
[1721285648739,6.0226,159.94,159.91,13.28050694]
[1721285648929,6.0226,159.94,159.92,12.03]
[1721285649364,6.0226,159.94,159.93,12.03]
[1721285649652,1.56313367,159.97,159.93,12.03]
[1721285650353,22.5383,159.98,159.94,13.28037653]
[1721285650530,22.5383,159.98,159.95,12.03]
[1721285652358,22.5383,159.98,159.96,12.03]
[1721285652359,6.2142,159.98,159.96,12.03]
[1721285653245,70.17111274,160.01,159.97,12.03]
[1721285655478,68.60836743,160.01,159.95,1.25012193]
[1721285655754,68.60836743,160.01,159.98,12.03]
[1721285656259,70.17084054,160.01,159.98,12.03]
[1721285656737,68.60836743,160.01,159.98,12.03]
[1721285658842,68.60836743,160.01,159.99,12.03]
[1721285660262,68.60836743,160.01,160.0,13.279898]
[1721285660642,68.60836743,160.01,160.0,12.03]
[1721285662459,68.60836743,160.01,160.0,34.06]
[1721285662667,68.60836743,160.01,160.0,79.06]
[1721285662874,68.60836743,160.01,160.0,67.03]
[1721285663047,68.60836743,160.01,160.0,68.27976236]
[1721285663240,68.60836743,160.01,160.0,80.30976236]
[1721285663667,68.60836743,160.01,160.0,130.89106477]
[1721285663849,68.60836743,160.01,160.0,131.06106477]
[1721285664051,68.60836743,160.01,160.0,130.89106477]
[1721285664260,68.60836743,160.01,160.0,130.72106477]
[1721285664769,68.60836743,160.01,160.0,12.03]
[1721285666549,68.60836743,160.01,160.0,22.03]
[1721285666755,68.60836743,160.01,160.0,67.03]
[1721285667680,68.60836743,160.01,160.0,79.06]
[1721285670681,68.60836743,160.01,160.0,130.72106477]
[1721285672575,68.60836743,160.01,160.0,8.03106326]
[1721285672874,68.60836743,160.01,160.0,12.03]
[1721285676474,68.60836743,160.01,159.98,10.0]
[1721285676673,68.60836743,160.01,160.0,12.03]
[1721285678065,68.60836743,160.01,159.99,12.03]
[1721285678973,68.60836743,160.01,159.98,12.03]
[1721285678974,1.56250119,160.0,159.98,12.03]
[1721285679379,68.60836743,160.01,159.99,13.2799296]
[1721285679676,68.60836743,160.01,160.0,12.03]
[1721285682690,68.60836743,160.01,160.0,24.06]
[1721285683066,68.60836743,160.01,160.0,34.06]
[1721285684669,68.60836743,160.01,160.0,79.06]
[1721285690365,68.60836743,160.01,159.98,10.0]
[1721285690567,68.60836743,160.01,160.0,12.03]
[1721285691579,68.60836743,160.01,160.0,22.03]
[1721285692789,68.60836743,160.01,159.98,10.0]
[1721285692980,68.60836743,160.01,160.0,12.03]
[1721285693176,68.60836743,160.01,159.98,10.0]
[1721285693177,75.13896743,160.01,159.97,21.99321916]
[1721285693402,75.13896743,160.01,159.98,12.03]
[1721285693872,75.13896743,160.01,159.99,12.03]
[1721285694901,75.13896743,160.01,159.97,16.49275915]
[1721285695070,75.13896743,160.01,160.0,12.03]
[1721285697281,75.13896743,160.01,159.99,12.03]
[1721285697789,75.13896743,160.01,159.98,12.03]
[1721285698374,75.13896743,160.01,159.99,12.03]
[1721285698775,15.4306,159.99,159.97,6.49275915]
[1721285698974,1.56275982,159.98,159.97,6.49275915]
[1721285699174,1.56275982,159.98,159.96,109.30467856]
[1721285700474,1.56275982,159.98,159.95,12.03]
[1721285700675,1.56275982,159.98,159.93,9.30877255]
[1721285700887,1.56275982,159.98,159.96,12.03]
[1721285701106,15.4306,159.99,159.96,12.03]
[1721285701398,15.4306,159.99,159.95,6.49407836]
[1721285701608,15.4306,159.99,159.98,12.03]
[1721285701799,15.4306,159.99,159.97,12.03]
[1721285703601,15.4306,159.99,159.96,12.03]
[1721285703804,1.56277715,159.98,159.96,12.03]
[1721285705794,1.56277715,159.98,159.95,6.49407836]
[1721285705795,1.56277715,159.98,159.95,18.52407836]
[1721285706718,1.56277715,159.98,159.95,6.49407836]
[1721285706898,12.03,159.97,159.92,12.03]
[1721285707098,1.56307652,159.96,159.92,18.52852893]
[1721285707896,1.56302354,159.97,159.92,6.49852893]
[1721285708125,1.56302354,159.98,159.93,1.25032609]
[1721285708324,1.56302354,159.98,159.95,12.03]
[1721285708816,15.4306,159.99,159.96,12.03]
[1721285709108,15.4306,159.99,159.97,12.03]
[1721285710293,75.13896743,160.01,159.97,12.03]
[1721285710514,75.13896743,160.01,159.98,13.27998815]
[1721285710716,75.13896743,160.01,159.98,12.03]
[1721285712513,75.13896743,160.01,159.97,12.03]
[1721285713610,75.13896743,160.01,159.95,10.0]
[1721285713814,75.13896743,160.01,159.98,12.03]
[1721285714814,75.13896743,160.01,159.97,12.03]
[1721285714990,75.13896743,160.01,159.98,12.03]
[1721285715714,75.13896743,160.01,159.96,45.0]
[1721285716015,75.13896743,160.01,159.97,12.03]
[1721285716223,75.13896743,160.01,159.98,12.03]
[1721285716798,75.13896743,160.01,159.99,12.03]
[1721285716999,68.60836743,160.01,160.0,12.03]
[1721285721100,68.60836743,160.01,160.0,67.03]
[1721285721730,68.60836743,160.01,160.0,79.06]
[1721285722418,68.60836743,160.01,160.0,67.03]
[1721285723919,0.8180857,160.07,160.05,10.0]
[1721285724111,0.8180857,160.07,160.06,13.27923745]
[1721285724802,0.8180857,160.07,160.06,12.03]
[1721285725216,0.8180857,160.07,160.06,13.27926435]
[1721285725608,0.8180857,160.07,160.06,12.03]
[1721285725807,0.8180857,160.07,160.06,13.27928553]
[1721285726833,0.8180857,160.07,160.06,12.03]
[1721285733234,0.8180857,160.07,160.06,13.27929902]
[1721285733535,0.8180857,160.07,160.06,12.03]
[1721285737224,0.8180857,160.07,160.06,57.03]
[1721285737424,0.8180857,160.07,160.06,12.03]
[1721285737941,0.8180857,160.07,160.05,12.03]
[1721285738750,0.8180857,160.07,160.04,12.03]
[1721285739321,0.8180857,160.07,160.03,12.03]
[1721285740324,6.0926,160.06,160.03,12.03]
[1721285740525,6.0926,160.06,160.02,12.03]
[1721285740744,6.0926,160.06,160.03,12.03]
[1721285741147,6.0926,160.06,160.02,12.03]
[1721285741355,6.0926,160.06,160.01,6.50016766]
[1721285741356,12.03,160.04,160.01,6.50016766]
[1721285741826,12.03,160.04,159.99,12.03]
[1721285742149,6.0926,160.06,159.99,6.49817902]
[1721285742150,27.1391,160.02,159.99,6.49817902]
[1721285742451,1.56257005,160.01,159.98,12.03]
[1721285742637,15.1091,160.02,159.99,1.2499001]
[1721285742949,15.1091,160.02,159.98,12.03]
[1721285743130,16.67159116,160.02,159.98,12.03]
[1721285743344,15.1091,160.02,159.98,13.27994408]
[1721285743652,15.1091,160.02,159.99,13.27991857]
[1721285744531,15.1091,160.02,160.0,12.03]
[1721285745825,15.1091,160.02,159.97,6.498361]
[1721285746029,1.56240939,160.01,159.98,12.03]
[1721285746332,1.56257059,160.01,159.98,12.03]
[1721285748964,1.56257059,160.01,159.97,6.498361]
[1721285749161,15.1091,160.02,159.98,13.28005175]
[1721285749457,1.56231136,160.01,159.97,6.498361]